[Event "*** Titled Tuesday Blitz"]
[Site "Chess.com"]
[Date "2019.08.06"]
[Round "8"]
[White "MFguimaraes"]
[Black "Vadim_Biliy"]
[Result "1/2-1/2"]
[WhiteElo "2272"]
[BlackElo "2209"]
[TimeControl "180+2"]
[EndTime "14:58:40 PDT"]
[Termination "Game drawn - insufficient material"]

1. e4 {[%clk 0:03:01.9]} 1... d6 {[%clk 0:02:59.8]} 2. d4 {[%clk 0:02:58.4]}
2... Nf6 {[%clk 0:03:01.3]} 3. Nc3 {[%clk 0:02:58.7]} 3... g6 {[%clk 0:03:02.8]}
4. f4 {[%clk 0:02:59.9]} 4... Bg7 {[%clk 0:03:01.4]} 5. Nf3 {[%clk 0:03:00.3]}
5... O-O {[%clk 0:03:01.9]} 6. e5 {[%clk 0:03:01.1]} 6... Nfd7 {[%clk
0:02:58.1]} 7. h4 {[%clk 0:02:59.2]} 7... c5 {[%clk 0:02:57.5]} 8. h5 {[%clk
0:02:58.8]} 8... cxd4 {[%clk 0:02:58.3]} 9. Qxd4 {[%clk 0:02:48]} 9... Nc6
{[%clk 0:02:51.2]} 10. Qf2 {[%clk 0:02:49]} 10... Re8 {[%clk 0:02:36.8]} 11.
hxg6 {[%clk 0:02:49.9]} 11... hxg6 {[%clk 0:02:31.4]} 12. Be3 {[%clk 0:02:36.1]}
12... dxe5 {[%clk 0:02:30.9]} 13. O-O-O {[%clk 0:02:37.3]} 13... Qa5 {[%clk
0:02:20.8]} 14. Rd5 {[%clk 0:02:35.3]} 14... Qc7 {[%clk 0:02:01.9]} 15. fxe5
{[%clk 0:02:36.2]} 15... Nf8 {[%clk 0:01:56.7]} 16. Ng5 {[%clk 0:02:01.3]} 16...
Be6 {[%clk 0:01:47.3]} 17. Nxe6 {[%clk 0:01:54.2]} 17... Nxe6 {[%clk 0:01:47.5]}
18. Bc4 {[%clk 0:01:43.9]} 18... Nxe5 {[%clk 0:01:44]} 19. Bb3 {[%clk
0:01:38.3]} 19... Ng4 {[%clk 0:01:39]} 20. Qf3 {[%clk 0:01:36.4]} 20... Nxe3
{[%clk 0:01:38.4]} 21. Qxe3 {[%clk 0:01:37.6]} 21... Qf4 {[%clk 0:01:35.2]} 22.
Qxf4 {[%clk 0:01:35.1]} 22... Nxf4 {[%clk 0:01:35.9]} 23. Rd7 {[%clk 0:01:36.4]}
23... Rab8 {[%clk 0:01:34.3]} 24. Rf1 {[%clk 0:01:35.2]} 24... Bh6 {[%clk
0:01:25.5]} 25. Kb1 {[%clk 0:01:32.6]} 25... g5 {[%clk 0:01:07]} 26. g3 {[%clk
0:01:31.7]} 26... Ne6 {[%clk 0:01:01.5]} 27. Nd5 {[%clk 0:01:22.8]} 27... Bf8
{[%clk 0:01:00.1]} 28. Nc7 {[%clk 0:01:21.7]} 28... Red8 {[%clk 0:00:49.8]} 29.
Bxe6 {[%clk 0:01:20.1]} 29... fxe6 {[%clk 0:00:46.8]} 30. Rxd8 {[%clk
0:01:21.2]} 30... Rxd8 {[%clk 0:00:46.8]} 31. Nxe6 {[%clk 0:01:22.8]} 31... Rc8
{[%clk 0:00:46.2]} 32. Nxg5 {[%clk 0:01:22.4]} 32... Bg7 {[%clk 0:00:46.8]} 33.
Ne6 {[%clk 0:01:23.6]} 33... Bf6 {[%clk 0:00:47.1]} 34. g4 {[%clk 0:01:23.7]}
34... Rc6 {[%clk 0:00:44.3]} 35. Nf4 {[%clk 0:01:22.5]} 35... Rb6 {[%clk
0:00:41.2]} 36. b3 {[%clk 0:01:22.7]} 36... Rd6 {[%clk 0:00:41.5]} 37. Nd3
{[%clk 0:01:17.1]} 37... Bc3 {[%clk 0:00:39.4]} 38. Rf4 {[%clk 0:01:14.1]} 38...
b5 {[%clk 0:00:37.7]} 39. a4 {[%clk 0:01:12.5]} 39... a6 {[%clk 0:00:36.2]} 40.
Ka2 {[%clk 0:01:11]} 40... Rh6 {[%clk 0:00:33.1]} 41. axb5 {[%clk 0:00:57.3]}
41... axb5 {[%clk 0:00:32.7]} 42. b4 {[%clk 0:00:58.7]} 42... Rh4 {[%clk
0:00:23.8]} 43. Kb3 {[%clk 0:00:54.9]} 43... Bd2 {[%clk 0:00:17.8]} 44. Rf2
{[%clk 0:00:55.7]} 44... Be3 {[%clk 0:00:17.1]} 45. Re2 {[%clk 0:00:56.8]} 45...
Bg5 {[%clk 0:00:17.6]} 46. Re4 {[%clk 0:00:56.1]} 46... Kf7 {[%clk 0:00:16.7]}
47. Ne5+ {[%clk 0:00:55.2]} 47... Ke8 {[%clk 0:00:16.9]} 48. Nf3 {[%clk
0:00:56.4]} 48... Rh3 {[%clk 0:00:16.6]} 49. Re5 {[%clk 0:00:52.9]} 49... Rxf3+
{[%clk 0:00:17]} 50. Ka2 {[%clk 0:00:54.6]} 50... Bf6 {[%clk 0:00:16.8]} 51.
Rxb5 {[%clk 0:00:55.4]} 51... Rf4 {[%clk 0:00:18]} 52. g5 {[%clk 0:00:55.7]}
52... Bc3 {[%clk 0:00:18.3]} 53. Kb3 {[%clk 0:00:56.3]} 53... Bd2 {[%clk
0:00:19.3]} 54. g6 {[%clk 0:00:55.7]} 54... Rg4 {[%clk 0:00:17.4]} 55. Rb6
{[%clk 0:00:50.4]} 55... Bh6 {[%clk 0:00:15.5]} 56. c4 {[%clk 0:00:50.9]} 56...
Bg7 {[%clk 0:00:16.4]} 57. Rc6 {[%clk 0:00:47.4]} 57... Bf6 {[%clk 0:00:17.1]}
58. b5 {[%clk 0:00:47.4]} 58... Kd7 {[%clk 0:00:18.1]} 59. Rc5 {[%clk
0:00:42.2]} 59... Rxg6 {[%clk 0:00:18.4]} 60. b6 {[%clk 0:00:42.7]} 60... Rg3+
{[%clk 0:00:16.5]} 61. Ka4 {[%clk 0:00:41]} 61... Bd4 {[%clk 0:00:16.2]} 62.
Rd5+ {[%clk 0:00:41.4]} 62... Kc6 {[%clk 0:00:16.7]} 63. Rxd4 {[%clk 0:00:42.8]}
63... Kxb6 {[%clk 0:00:18]} 64. Re4 {[%clk 0:00:41.2]} 64... Rg7 {[%clk
0:00:17.3]} 65. Kb4 {[%clk 0:00:41.4]} 65... Kc6 {[%clk 0:00:18.4]} 66. Re6+
{[%clk 0:00:42.5]} 66... Kd7 {[%clk 0:00:18.8]} 67. Ra6 {[%clk 0:00:43.5]} 67...
Rg1 {[%clk 0:00:18.8]} 68. Kc5 {[%clk 0:00:44.4]} 68... Rg5+ {[%clk 0:00:17.1]}
69. Kb4 {[%clk 0:00:44.7]} 69... Rg1 {[%clk 0:00:17.5]} 70. Rh6 {[%clk
0:00:45.3]} 70... Rg5 {[%clk 0:00:16.5]} 71. Kc3 {[%clk 0:00:46.2]} 71... e6
{[%clk 0:00:16]} 72. Kd4 {[%clk 0:00:46.9]} 72... Kd6 {[%clk 0:00:17.1]} 73. c5+
{[%clk 0:00:46.4]} 73... Kd7 {[%clk 0:00:18.2]} 74. Kc4 {[%clk 0:00:43.9]} 74...
Rg1 {[%clk 0:00:16.9]} 75. Rh8 {[%clk 0:00:36.7]} 75... Rc1+ {[%clk 0:00:16.9]}
76. Kd4 {[%clk 0:00:37.7]} 76... Rd1+ {[%clk 0:00:17.2]} 77. Kc4 {[%clk
0:00:39.1]} 77... Rc1+ {[%clk 0:00:18.1]} 78. Kb4 {[%clk 0:00:40.1]} 78... Kc6
{[%clk 0:00:17.8]} 79. Rc8+ {[%clk 0:00:40.1]} 79... Kd5 {[%clk 0:00:18.6]} 80.
Rd8+ {[%clk 0:00:39.7]} 80... Ke5 {[%clk 0:00:17.8]} 81. Kb5 {[%clk 0:00:40]}
81... Rb1+ {[%clk 0:00:17.9]} 82. Ka6 {[%clk 0:00:40.4]} 82... Ke4 {[%clk
0:00:18.1]} 83. c6 {[%clk 0:00:41.1]} 83... Rc1 {[%clk 0:00:18.5]} 84. Kb7
{[%clk 0:00:41.3]} 84... e5 {[%clk 0:00:19.4]} 85. c7 {[%clk 0:00:42.8]} 85...
Ke3 {[%clk 0:00:19.9]} 86. c8=Q {[%clk 0:00:43.8]} 86... Rxc8 {[%clk 0:00:19]}
87. Rxc8 {[%clk 0:00:45.2]} 87... e4 {[%clk 0:00:20.1]} 88. Kc6 {[%clk
0:00:47.1]} 88... Kd2 {[%clk 0:00:19.5]} 89. Rd8+ {[%clk 0:00:45.3]} 89... Kc2
{[%clk 0:00:19.3]} 90. Re8 {[%clk 0:00:32.2]} 90... Kd3 {[%clk 0:00:19.9]} 91.
Rd8+ {[%clk 0:00:30.1]} 91... Kc2 {[%clk 0:00:19.9]} 92. Kd5 {[%clk 0:00:27.1]}
92... e3 {[%clk 0:00:20.7]} 93. Re8 {[%clk 0:00:27.8]} 93... Kd2 {[%clk
0:00:21]} 94. Kc4 {[%clk 0:00:28.2]} 94... e2 {[%clk 0:00:21.4]} 95. Rd8+ {[%clk
0:00:29.3]} 95... Kc2 {[%clk 0:00:22.4]} 96. Re8 {[%clk 0:00:29.5]} 96... Kd2
{[%clk 0:00:23.4]} 97. Kd4 {[%clk 0:00:29.8]} 97... e1=Q {[%clk 0:00:23.5]} 98.
Rxe1 {[%clk 0:00:31.7]} 98... Kxe1 {[%clk 0:00:24.4]} 1/2-1/2

[Event "*** Titled Tuesday Blitz"]
[Site "Chess.com"]
[Date "2019.08.06"]
[Round "8"]
[White "payto1"]
[Black "mikhaillushenkov"]
[Result "1/2-1/2"]
[WhiteElo "2357"]
[BlackElo "2683"]
[TimeControl "180+2"]
[EndTime "14:58:42 PDT"]
[Termination "Game drawn - insufficient material"]

1. d4 {[%clk 0:03:01.9]} 1... Nf6 {[%clk 0:02:59.9]} 2. Bg5 {[%clk 0:03:01.2]}
2... d5 {[%clk 0:02:58.4]} 3. Bxf6 {[%clk 0:03:01.5]} 3... exf6 {[%clk
0:03:00.3]} 4. e3 {[%clk 0:03:02.1]} 4... c6 {[%clk 0:02:59.7]} 5. c4 {[%clk
0:03:03.2]} 5... dxc4 {[%clk 0:02:57.6]} 6. Bxc4 {[%clk 0:03:04.1]} 6... f5
{[%clk 0:02:59.2]} 7. Nc3 {[%clk 0:03:04.4]} 7... Bd6 {[%clk 0:03:00.1]} 8. Nf3
{[%clk 0:03:03.2]} 8... O-O {[%clk 0:03:01.2]} 9. O-O {[%clk 0:03:03.5]} 9...
Nd7 {[%clk 0:03:02.1]} 10. a3 {[%clk 0:03:04.1]} 10... a5 {[%clk 0:03:02.2]} 11.
Rc1 {[%clk 0:03:01]} 11... Nf6 {[%clk 0:03:02]} 12. Qe2 {[%clk 0:03:01.4]} 12...
g6 {[%clk 0:02:57.4]} 13. Rfd1 {[%clk 0:03:01.7]} 13... Qe7 {[%clk 0:02:57]} 14.
d5 {[%clk 0:02:57.5]} 14... c5 {[%clk 0:02:39.1]} 15. Nb5 {[%clk 0:02:54.4]}
15... a4 {[%clk 0:02:35.7]} 16. Nxd6 {[%clk 0:02:54.5]} 16... Qxd6 {[%clk
0:02:37.6]} 17. Nd2 {[%clk 0:02:50.6]} 17... Ne4 {[%clk 0:02:34.6]} 18. Bb5
{[%clk 0:02:36.4]} 18... Nxd2 {[%clk 0:02:33.1]} 19. Rxd2 {[%clk 0:02:37.2]}
19... b6 {[%clk 0:02:18.3]} 20. Qc4 {[%clk 0:02:35.1]} 20... Bd7 {[%clk
0:02:18.1]} 21. Bxd7 {[%clk 0:02:34]} 21... Qxd7 {[%clk 0:02:20]} 22. d6 {[%clk
0:02:33.9]} 22... Rae8 {[%clk 0:02:12.4]} 23. Rcd1 {[%clk 0:02:34.4]} 23... Re4
{[%clk 0:02:11.9]} 24. Qa6 {[%clk 0:02:25.8]} 24... Rb8 {[%clk 0:02:08.6]} 25.
Rd5 {[%clk 0:02:25.5]} 25... f4 {[%clk 0:02:03.9]} 26. Qd3 {[%clk 0:02:21]}
26... Rbe8 {[%clk 0:02:00.9]} 27. Re1 {[%clk 0:02:12.9]} 27... f5 {[%clk
0:01:41.8]} 28. Qc3 {[%clk 0:02:02.2]} 28... h5 {[%clk 0:01:23.5]} 29. Rdd1
{[%clk 0:02:00.1]} 29... Kf7 {[%clk 0:01:18.7]} 30. b3 {[%clk 0:01:40.9]} 30...
fxe3 {[%clk 0:01:06.4]} 31. Rxe3 {[%clk 0:01:39.5]} 31... Rxe3 {[%clk 0:01:07]}
32. fxe3 {[%clk 0:01:39.6]} 32... axb3 {[%clk 0:01:05.8]} 33. Qxb3+ {[%clk
0:01:39.9]} 33... Qe6 {[%clk 0:01:07.3]} 34. Qd3 {[%clk 0:01:24.3]} 34... Rd8
{[%clk 0:01:02.2]} 35. Kf2 {[%clk 0:01:21]} 35... Rd7 {[%clk 0:01:00.1]} 36. a4
{[%clk 0:01:16.3]} 36... Qa2+ {[%clk 0:00:58.6]} 37. Rd2 {[%clk 0:01:13.7]}
37... Qxa4 {[%clk 0:00:40.1]} 38. Qd5+ {[%clk 0:01:13.3]} 38... Kf6 {[%clk
0:00:41.5]} 39. Qg8 {[%clk 0:01:04]} 39... Qh4+ {[%clk 0:00:40.7]} 40. Ke2
{[%clk 0:00:56.8]} 40... Qe4 {[%clk 0:00:34.2]} 41. Qf8+ {[%clk 0:00:42.2]}
41... Kg5 {[%clk 0:00:35]} 42. Kf2 {[%clk 0:00:43.3]} 42... h4 {[%clk
0:00:34.3]} 43. Qc8 {[%clk 0:00:36.7]} 43... Qe6 {[%clk 0:00:31.5]} 44. Qc6
{[%clk 0:00:37.1]} 44... c4 {[%clk 0:00:27.6]} 45. Rd4 {[%clk 0:00:19.8]} 45...
c3 {[%clk 0:00:21.3]} 46. Qxc3 {[%clk 0:00:17.4]} 46... Rxd6 {[%clk 0:00:20.5]}
47. Qb4 {[%clk 0:00:16.1]} 47... Rxd4 {[%clk 0:00:20.7]} 48. exd4 {[%clk
0:00:16.4]} 48... Qe4 {[%clk 0:00:15.7]} 49. Qxb6 {[%clk 0:00:15.5]} 49... Qf4+
{[%clk 0:00:17.1]} 50. Kg1 {[%clk 0:00:16]} 50... Qe3+ {[%clk 0:00:18.2]} 51.
Kf1 {[%clk 0:00:17.1]} 51... Qd3+ {[%clk 0:00:19.6]} 52. Kf2 {[%clk 0:00:17.4]}
52... Qd2+ {[%clk 0:00:19.8]} 53. Kf1 {[%clk 0:00:18.3]} 53... h3 {[%clk
0:00:20.8]} 54. Qd8+ {[%clk 0:00:18]} 54... Kg4 {[%clk 0:00:22]} 55. gxh3+
{[%clk 0:00:18.3]} 55... Kf3 {[%clk 0:00:22.8]} 56. Qd5+ {[%clk 0:00:18.5]}
56... Kf4 {[%clk 0:00:11.9]} 57. Qe5+ {[%clk 0:00:18.8]} 57... Kg5 {[%clk
0:00:12.5]} 58. Qg3+ {[%clk 0:00:18.9]} 58... Kf6 {[%clk 0:00:13.9]} 59. Qf2
{[%clk 0:00:19.8]} 59... Qd3+ {[%clk 0:00:14.6]} 60. Kg1 {[%clk 0:00:19.2]}
60... Qd1+ {[%clk 0:00:15.4]} 61. Kg2 {[%clk 0:00:20]} 61... Qd3 {[%clk
0:00:16.8]} 62. h4 {[%clk 0:00:19.8]} 62... Qe4+ {[%clk 0:00:17.8]} 63. Kg1
{[%clk 0:00:19.5]} 63... Ke6 {[%clk 0:00:18.1]} 64. Qa2+ {[%clk 0:00:17.1]}
64... Qd5 {[%clk 0:00:17.3]} 65. Qa6+ {[%clk 0:00:17.2]} 65... Kf7 {[%clk
0:00:18.2]} 66. Qb6 {[%clk 0:00:16.2]} 66... Qf3 {[%clk 0:00:18.1]} 67. Qc7+
{[%clk 0:00:16]} 67... Kg8 {[%clk 0:00:18.3]} 68. Qd8+ {[%clk 0:00:15.6]} 68...
Kh7 {[%clk 0:00:19.2]} 69. Qe7+ {[%clk 0:00:15.8]} 69... Kh6 {[%clk 0:00:19.3]}
70. Qf8+ {[%clk 0:00:15.9]} 70... Kh5 {[%clk 0:00:18.1]} 71. Qf6 {[%clk
0:00:14.1]} 71... Qe3+ {[%clk 0:00:13.1]} 72. Kg2 {[%clk 0:00:13.7]} 72... Qe2+
{[%clk 0:00:14.4]} 73. Kg1 {[%clk 0:00:14.7]} 73... Qg4+ {[%clk 0:00:15.5]} 74.
Kf2 {[%clk 0:00:14.5]} 74... Qf4+ {[%clk 0:00:12]} 75. Kg2 {[%clk 0:00:15.2]}
75... Qe4+ {[%clk 0:00:12.9]} 76. Kf2 {[%clk 0:00:15.6]} 76... Qc2+ {[%clk
0:00:11.4]} 77. Kg1 {[%clk 0:00:15]} 77... Qd1+ {[%clk 0:00:12.1]} 78. Kg2
{[%clk 0:00:16.2]} 78... Qe2+ {[%clk 0:00:13]} 79. Kg1 {[%clk 0:00:16.9]} 79...
Qg4+ {[%clk 0:00:09.5]} 80. Kf2 {[%clk 0:00:17.8]} 80... Qxh4+ {[%clk
0:00:07.3]} 81. Qxh4+ {[%clk 0:00:18.1]} 81... Kxh4 {[%clk 0:00:09.2]} 82. d5
{[%clk 0:00:19.3]} 82... Kg5 {[%clk 0:00:10.7]} 83. Kf3 {[%clk 0:00:19.2]} 83...
Kf6 {[%clk 0:00:12.1]} 84. d6 {[%clk 0:00:06]} 84... Ke6 {[%clk 0:00:13.2]} 85.
Kf4 {[%clk 0:00:07.5]} 85... Kxd6 {[%clk 0:00:14.1]} 86. h4 {[%clk 0:00:07.9]}
86... Ke6 {[%clk 0:00:14.8]} 87. Kg5 {[%clk 0:00:09.1]} 87... Ke5 {[%clk
0:00:13.4]} 88. Kxg6 {[%clk 0:00:09.7]} 88... f4 {[%clk 0:00:14.8]} 89. h5
{[%clk 0:00:11.3]} 89... f3 {[%clk 0:00:16.4]} 90. h6 {[%clk 0:00:12.9]} 90...
f2 {[%clk 0:00:18.1]} 91. h7 {[%clk 0:00:14.5]} 91... f1=Q {[%clk 0:00:19.5]}
92. h8=Q+ {[%clk 0:00:15.8]} 92... Ke4 {[%clk 0:00:20.4]} 93. Qe8+ {[%clk
0:00:16.4]} 93... Kf3 {[%clk 0:00:21.7]} 94. Qf7+ {[%clk 0:00:17.2]} 94... Kg2
{[%clk 0:00:23.1]} 95. Qxf1+ {[%clk 0:00:18.7]} 95... Kxf1 {[%clk 0:00:25]}
1/2-1/2

[Event "*** Titled Tuesday Blitz"]
[Site "Chess.com"]
[Date "2019.08.06"]
[Round "8"]
[White "ArnaudovP"]
[Black "Tjktiger"]
[Result "0-1"]
[WhiteElo "2673"]
[BlackElo "2832"]
[TimeControl "180+2"]
[EndTime "14:59:46 PDT"]
[Termination "Tjktiger won by resignation"]

1. Nf3 {[%clk 0:03:01.9]} 1... c5 {[%clk 0:03:00.6]} 2. c4 {[%clk 0:03:02.5]}
2... g6 {[%clk 0:03:02.1]} 3. d4 {[%clk 0:03:03.1]} 3... cxd4 {[%clk 0:03:03.1]}
4. Nxd4 {[%clk 0:03:05]} 4... Bg7 {[%clk 0:03:04.4]} 5. e4 {[%clk 0:03:06.5]}
5... Nc6 {[%clk 0:03:05.8]} 6. Be3 {[%clk 0:03:05.8]} 6... d6 {[%clk 0:03:06.3]}
7. Nc3 {[%clk 0:03:02.8]} 7... Qb6 {[%clk 0:03:06.5]} 8. Nb3 {[%clk 0:02:56.8]}
8... Bxc3+ {[%clk 0:03:05.6]} 9. bxc3 {[%clk 0:02:57.4]} 9... Qc7 {[%clk
0:03:07.5]} 10. Be2 {[%clk 0:02:57.5]} 10... Nf6 {[%clk 0:03:08.2]} 11. f3
{[%clk 0:02:56.9]} 11... O-O {[%clk 0:03:08.8]} 12. O-O {[%clk 0:02:57.2]} 12...
b6 {[%clk 0:03:09.3]} 13. a4 {[%clk 0:02:56.3]} 13... Be6 {[%clk 0:03:01.6]} 14.
Nd4 {[%clk 0:02:54.5]} 14... Na5 {[%clk 0:02:56.4]} 15. Nxe6 {[%clk 0:02:54.6]}
15... fxe6 {[%clk 0:02:57.2]} 16. Bh6 {[%clk 0:02:42.8]} 16... Rf7 {[%clk
0:02:49.2]} 17. Kh1 {[%clk 0:02:43.6]} 17... Rc8 {[%clk 0:02:42.1]} 18. Re1
{[%clk 0:02:38.3]} 18... Qc5 {[%clk 0:02:35.1]} 19. Bf1 {[%clk 0:02:36.1]} 19...
Nxc4 {[%clk 0:02:33.9]} 20. Qb3 {[%clk 0:02:35.7]} 20... Nd7 {[%clk 0:02:19.7]}
21. Rad1 {[%clk 0:02:20.7]} 21... Nde5 {[%clk 0:02:17.2]} 22. Bc1 {[%clk
0:02:20.2]} 22... a6 {[%clk 0:01:59.8]} 23. h3 {[%clk 0:02:12.8]} 23... b5
{[%clk 0:01:56.8]} 24. f4 {[%clk 0:02:03.7]} 24... Nc6 {[%clk 0:01:57.3]} 25.
axb5 {[%clk 0:02:02.8]} 25... axb5 {[%clk 0:01:58]} 26. Bd3 {[%clk 0:01:47.8]}
26... Rcf8 {[%clk 0:01:49.2]} 27. Qb1 {[%clk 0:01:30.6]} 27... Kg7 {[%clk
0:00:55.7]} 28. Qb3 {[%clk 0:01:24.2]} 28... Ra8 {[%clk 0:00:35.7]} 29. Qb1
{[%clk 0:01:23.3]} 29... Rb8 {[%clk 0:00:30.9]} 30. Qb3 {[%clk 0:01:22.2]} 30...
Rff8 {[%clk 0:00:30.3]} 31. Rf1 {[%clk 0:01:19.2]} 31... N6a5 {[%clk 0:00:21.5]}
32. Qc2 {[%clk 0:01:13.9]} 32... Ne3 {[%clk 0:00:19.3]} 33. Bxe3 {[%clk
0:01:12.7]} 33... Qxe3 {[%clk 0:00:20.3]} 34. Qa2 {[%clk 0:01:14.2]} 34... Nc4
{[%clk 0:00:08.5]} 35. Bxc4 {[%clk 0:01:14.2]} 35... bxc4 {[%clk 0:00:09.6]} 36.
Qxc4 {[%clk 0:01:15.3]} 36... Rxf4 {[%clk 0:00:04.1]} 37. Rxf4 {[%clk
0:01:12.8]} 37... Qxf4 {[%clk 0:00:05.5]} 38. Qxe6 {[%clk 0:01:14.3]} 38... Qf6
{[%clk 0:00:06.1]} 39. Qc4 {[%clk 0:01:03.9]} 39... Rf8 {[%clk 0:00:06.2]} 40.
Qd4 {[%clk 0:01:01.4]} 40... Qxd4 {[%clk 0:00:04.8]} 41. cxd4 {[%clk 0:01:02.2]}
41... Rf2 {[%clk 0:00:04.6]} 42. e5 {[%clk 0:00:49.3]} 42... dxe5 {[%clk
0:00:04.5]} 43. dxe5 {[%clk 0:00:50.3]} 43... Re2 {[%clk 0:00:06.1]} 44. Rd5
{[%clk 0:00:51]} 44... Kf7 {[%clk 0:00:06.5]} 45. Kg1 {[%clk 0:00:51.2]} 45...
Ke6 {[%clk 0:00:07.7]} 46. Rd8 {[%clk 0:00:51.9]} 46... Rxe5 {[%clk 0:00:08.6]}
47. Kf2 {[%clk 0:00:50.6]} 47... Rf5+ {[%clk 0:00:09.1]} 48. Ke3 {[%clk
0:00:50.7]} 48... Rf7 {[%clk 0:00:07.8]} 49. g4 {[%clk 0:00:49.6]} 49... Kf6
{[%clk 0:00:05.9]} 50. Kf4 {[%clk 0:00:49.5]} 50... Kg7+ {[%clk 0:00:05.4]} 51.
Kg3 {[%clk 0:00:48.5]} 51... Kf6 {[%clk 0:00:06.8]} 52. Kf4 {[%clk 0:00:48.4]}
52... h6 {[%clk 0:00:06.6]} 53. h4 {[%clk 0:00:48.1]} 53... Kg7+ {[%clk
0:00:07.4]} 54. Kg3 {[%clk 0:00:48.8]} 54... Rf6 {[%clk 0:00:08.3]} 55. Re8
{[%clk 0:00:45.3]} 55... Re6 {[%clk 0:00:09.3]} 56. Kf4 {[%clk 0:00:44.1]} 56...
Re1 {[%clk 0:00:09.4]} 57. Ra8 {[%clk 0:00:42.2]} 57... Rf1+ {[%clk 0:00:09.7]}
58. Kg3 {[%clk 0:00:42.7]} 58... Kf7 {[%clk 0:00:09.4]} 59. Rh8 {[%clk
0:00:42.3]} 59... Kg7 {[%clk 0:00:10.3]} 60. Re8 {[%clk 0:00:42.9]} 60... Re1
{[%clk 0:00:09.8]} 61. Kf2 {[%clk 0:00:42.3]} 61... Re6 {[%clk 0:00:10.2]} 62.
Kf3 {[%clk 0:00:41.7]} 62... g5 {[%clk 0:00:06.8]} 63. hxg5 {[%clk 0:00:39.1]}
63... hxg5 {[%clk 0:00:08]} 64. Ra8 {[%clk 0:00:40.4]} 64... Rf6+ {[%clk
0:00:09]} 65. Kg3 {[%clk 0:00:41.3]} 65... Rf4 {[%clk 0:00:09.1]} 66. Ra5 {[%clk
0:00:42]} 66... Kf6 {[%clk 0:00:09.2]} 67. Ra6+ {[%clk 0:00:42.8]} 67... e6
{[%clk 0:00:09.9]} 68. Ra8 {[%clk 0:00:44.2]} 68... Rb4 {[%clk 0:00:08.3]} 69.
Rf8+ {[%clk 0:00:44.4]} 69... Ke5 {[%clk 0:00:09.7]} 70. Rg8 {[%clk 0:00:45.3]}
70... Rb3+ {[%clk 0:00:11]} 71. Kf2 {[%clk 0:00:42.8]} 71... Kf4 {[%clk
0:00:12]} 72. Rf8+ {[%clk 0:00:39.1]} 72... Kxg4 {[%clk 0:00:11.4]} 73. Rf6
{[%clk 0:00:40.5]} 73... e5 {[%clk 0:00:11.3]} 74. Rf8 {[%clk 0:00:38.4]} 74...
e4 {[%clk 0:00:11.3]} 75. Ke2 {[%clk 0:00:37.7]} 75... Rf3 {[%clk 0:00:10.4]}
76. Re8 {[%clk 0:00:37.8]} 76... Rf4 {[%clk 0:00:10.1]} 77. Ke3 {[%clk
0:00:38.6]} 77... Kg3 {[%clk 0:00:10.3]} 78. Ra8 {[%clk 0:00:33.3]} 78... Rf1
{[%clk 0:00:08.6]} 79. Kxe4 {[%clk 0:00:33.3]} 79... g4 {[%clk 0:00:10]} 80. Rg8
{[%clk 0:00:27.2]} 80... Kh3 {[%clk 0:00:09.4]} 81. Ke3 {[%clk 0:00:28]} 81...
g3 {[%clk 0:00:10.7]} 82. Rh8+ {[%clk 0:00:28.6]} 82... Kg2 {[%clk 0:00:10.8]}
83. Ke2 {[%clk 0:00:30.1]} 83... Rf5 {[%clk 0:00:09.9]} 84. Rh7 {[%clk
0:00:31.3]} 84... Kg1 {[%clk 0:00:10]} 85. Ke1 {[%clk 0:00:31.7]} 85... Re5+
{[%clk 0:00:10]} 86. Kd2 {[%clk 0:00:31.8]} 86... g2 {[%clk 0:00:11.6]} 87. Rh6
{[%clk 0:00:31.7]} 87... Kf2 {[%clk 0:00:11.3]} 88. Rf6+ {[%clk 0:00:32.4]}
88... Kg3 {[%clk 0:00:12.5]} 89. Rg6+ {[%clk 0:00:33.5]} 89... Kf2 {[%clk
0:00:12.9]} 90. Rf6+ {[%clk 0:00:34.2]} 90... Kg3 {[%clk 0:00:10.8]} 91. Rg6+
{[%clk 0:00:35.2]} 91... Kf3 {[%clk 0:00:10.9]} 92. Rg8 {[%clk 0:00:33.5]} 92...
Re4 {[%clk 0:00:11.8]} 93. Rf8+ {[%clk 0:00:32.6]} 93... Rf4 {[%clk 0:00:12.4]}
94. Rg8 {[%clk 0:00:34.2]} 94... Rg4 {[%clk 0:00:13.5]} 95. Rf8+ {[%clk
0:00:35.5]} 95... Kg3 {[%clk 0:00:14.6]} 0-1